bitfinex-derivatives/quotes_SOLF0:USTF0_20241226
["timestamp","ask_amount","ask_price","bid_price","bid_amount"]
[1735230810905,4.2562,189.41,189.33,2.6434]
[1735230811100,3.26,189.4,189.3,19.28814175]
[1735230811307,3.26,189.42,189.33,19.28814175]
[1735230811702,2.6417,189.45,189.4,2.6423]
[1735230811904,3.26,189.44,189.36,19.28814175]
[1735230812109,3.26,189.44,189.37,3.2339]
[1735230812609,3.26,189.47,189.39,19.28814175]
[1735230813010,2.6409,189.51,189.46,2.6415]
[1735230813213,3.26,189.5,189.39,19.28814175]
[1735230813705,3.26,189.5,189.45,2.6416]
[1735230814608,3.26,189.5,189.39,19.28814175]
[1735230814912,2.6417,189.45,189.39,2.6424]
[1735230815101,3.26,189.44,189.37,3.2339]
[1735230816406,3.26,189.44,189.4,2.6424]
[1735230817502,2.6416,189.46,189.4,2.6424]
[1735230817706,2.6412,189.49,189.39,19.28814175]
[1735230817912,5.9012,189.49,189.39,19.28814175]
[1735230818112,3.26,189.49,189.39,19.28814175]
[1735230818315,3.26,189.49,189.46,2.6415]
[1735230818823,3.26,189.52,189.42,19.28814175]
[1735230819208,3.26,189.52,189.47,2.6414]
[1735230820510,5.9007,189.52,189.47,2.6414]
[1735230821316,2.6408,189.51,189.45,2.6415]
[1735230821512,2.6408,189.51,189.42,19.28814175]
[1735230821913,3.26,189.5,189.46,2.6414]
[1735230824615,3.26,189.5,189.4,3.26]
[1735230824814,2.6411,189.49,189.44,2.6417]
[1735230825523,3.26,189.5,189.45,2.6417]
[1735230826420,3.26,189.5,189.38,1.5326]
[1735230826719,3.26,189.5,189.37,3.2339]
[1735230827022,1.5575,189.49,189.37,3.2339]
[1735230827222,2.6416,189.46,189.41,2.6422]
[1735230827521,3.26,189.45,189.41,2.6422]
[1735230828422,3.26,189.44,189.41,2.6422]
[1735230829717,3.26,189.44,189.37,3.2339]
[1735230829916,3.26,189.44,189.4,2.6424]
[1735230830615,5.9018,189.44,189.4,2.6424]
[1735230832625,3.26,189.44,189.4,2.6424]
[1735230832929,3.26,189.44,189.39,12.05305932]
[1735230833524,3.26,189.44,189.43,2.642]
[1735230834828,3.22,189.5,189.48,2.6413]
[1735230835728,3.22,189.5,189.42,12.05305932]
[1735230836228,13.68515932,189.57,189.48,2.6412]
[1735230836424,2.6405,189.54,189.48,2.6412]
[1735230836825,2.6401,189.56,189.45,12.05305932]
[1735230837029,3.22,189.55,189.48,12.05305932]
[1735230837528,3.22,189.55,189.52,2.6407]
[1735230837924,2.233892,189.58,189.48,12.05305932]
[1735230837925,3.22,189.56,189.48,12.05305932]
[1735230838126,15.18185932,189.6,189.48,12.05305932]
[1735230838331,3.22,189.59,189.51,12.05305932]
[1735230839426,3.22,189.59,189.53,2.6405]
[1735230839724,3.22,189.59,189.51,12.05305932]
[1735230840336,3.22,189.61,189.54,12.05305932]
[1735230841431,3.22,189.64,189.57,12.05305932]
[1735230841731,3.22,189.64,189.54,12.05305932]
[1735230841931,12.05305932,189.63,189.51,12.05305932]
[1735230842124,3.22,189.64,189.48,19.25786672]
[1735230842125,22.47786672,189.64,189.48,19.25786672]
[1735230842733,2.6397,189.6,189.48,19.25786672]
[1735230842942,3.22,189.59,189.53,2.6406]
[1735230843637,3.22,189.59,189.46,3.1861]
[1735230843837,20.83346672,189.58,189.43,1.6156]
[1735230844135,24.17636672,189.58,189.43,1.6156]
[1735230844439,24.17636672,189.58,189.46,2.6414]
[1735230844637,24.17636672,189.58,189.43,1.6156]
[1735230845234,24.17636672,189.58,189.42,19.25786672]
[1735230845435,19.25786672,189.55,189.4,3.1816]
[1735230845735,3.22,189.54,189.4,3.1816]
[1735230846039,2.6414,189.47,189.41,2.6421]
[1735230846239,3.22,189.46,189.41,2.6421]
[1735230846442,3.22,189.46,189.4,3.1816]
[1735230846737,5.8616,189.46,189.4,3.1816]
[1735230847138,5.8616,189.46,189.36,19.25786672]
[1735230847139,2.6424,189.4,189.33,19.25786672]
[1735230847338,3.22,189.4,189.31,1.6017]
[1735230847934,5.8624,189.4,189.31,1.6017]
[1735230848132,3.22,189.4,189.31,4.2453]
[1735230848737,2.6427,189.38,189.32,2.6435]
[1735230849445,2.6431,189.35,189.28,2.644]
[1735230849743,3.22,189.34,189.23,1.5964]
[1735230849934,3.22,189.33,189.23,1.5964]
[1735230850138,2.6437,189.31,189.24,2.6446]
[1735230850338,2.6437,189.31,189.23,1.5964]
[1735230850734,2.6439,189.29,189.23,1.5964]
[1735230850940,3.22,189.28,189.22,1.6647]
[1735230851838,3.22,189.28,189.23,2.6447]
[1735230853944,4.883,189.35,189.22,1.6647]
[1735230854136,3.24,189.34,189.23,19.25786672]
[1735230854339,3.24,189.34,189.26,19.25786672]
[1735230854539,19.25786672,189.42,189.26,19.25786672]
[1735230854741,3.24,189.41,189.26,19.25786672]
[1735230855440,2.6428,189.38,189.3,2.6437]
[1735230855946,3.24,189.41,189.26,19.25786672]
[1735230856144,3.24,189.41,189.22,1.6647]
[1735230856145,19.25786672,189.34,189.22,1.6647]
[1735230856443,3.24,189.33,189.22,1.6647]
[1735230856637,2.6439,189.29,189.22,1.6647]
[1735230856843,3.24,189.28,189.21,2.6449]
[1735230857045,3.24,189.27,189.21,2.6449]
[1735230857645,4.7978,189.33,189.21,2.6449]
[1735230857646,3.24,189.26,189.21,2.6449]
[1735230858139,3.24,189.26,189.2,2.6451]
[1735230858345,3.24,189.26,189.17,20.78476672]
[1735230858846,3.24,189.26,189.22,2.6449]
[1735230859349,3.24,189.26,189.17,20.78476672]
[1735230860443,3.24,189.26,189.23,2.6446]
[1735230861754,3.24,189.26,189.24,2.6446]
[1735230861948,3.24,189.29,189.17,20.78476672]
[1735230862454,2.6441,189.28,189.17,20.78476672]
[1735230863356,2.6442,189.27,189.21,2.6449]
[1735230864657,2.6442,189.27,189.17,20.78476672]
[1735230864857,2.6442,189.27,189.22,2.6449]
[1735230866257,2.6442,189.27,189.23,2.6447]
[1735230866560,3.24,189.29,189.17,20.78476672]
[1735230867163,3.24,189.29,189.25,2.6444]
[1735230867560,2.6438,189.3,189.25,2.6444]
[1735230867760,3.24,189.29,189.25,2.6444]
[1735230867957,2.6435,189.32,189.27,2.6442]
[1735230868265,4.7978,189.33,189.2,19.25786672]
[1735230868765,3.24,189.32,189.2,19.25786672]
[1735230869564,3.24,189.32,189.27,2.6441]
[1735230870166,5.8835,189.32,189.27,2.6441]
[1735230870467,3.24,189.32,189.25,2.6444]
[1735230870660,3.24,189.32,189.2,19.25786672]
[1735230871364,2.6437,189.31,189.26,2.6442]
[1735230871961,3.24,189.32,189.2,19.25786672]
[1735230872161,19.25786672,189.4,189.23,19.25786672]
[1735230872367,4.3262,189.39,189.33,2.6433]
[1735230872563,4.9237,189.39,189.27,1.5427]
[1735230872867,3.3468,189.42,189.29,19.25786672]
[1735230872868,3.24,189.4,189.29,19.25786672]
[1735230873067,5.8825,189.4,189.34,2.6431]
[1735230873271,3.24,189.4,189.34,2.6431]
[1735230873466,3.24,189.4,189.27,1.5427]
[1735230873674,2.6433,189.34,189.27,1.5427]
[1735230873868,5.8833,189.34,189.27,1.5427]
[1735230874064,5.8833,189.34,189.29,2.6438]
[1735230874273,3.24,189.34,189.27,1.5427]
[1735230875077,3.24,189.34,189.29,2.6439]
[1735230875275,3.24,189.34,189.27,1.5427]
[1735230876270,3.24,189.34,189.3,2.6437]
[1735230876979,3.24,189.34,189.27,1.5427]
[1735230877169,3.24,189.38,189.27,1.5427]
[1735230877878,3.24,189.38,189.35,2.643]
[1735230878277,2.6424,189.4,189.35,2.643]
[1735230878580,3.24,189.39,189.33,2.6433]
[1735230878781,3.24,189.39,189.29,19.25786672]
[1735230879476,5.8825,189.39,189.34,2.6432]
[1735230879883,5.8825,189.39,189.29,19.25786672]
[1735230880181,5.8825,189.39,189.34,2.6431]
[1735230880372,3.24,189.39,189.29,19.25786672]
[1735230880573,2.6427,189.38,189.29,19.25786672]
[1735230880774,2.6427,189.38,189.34,2.6432]
[1735230881177,5.8825,189.39,189.34,2.6432]
[1735230881782,3.24,189.39,189.29,19.25786672]
[1735230881982,2.6429,189.37,189.32,2.6434]
[1735230882781,3.24,189.39,189.27,1.5427]
[1735230882979,2.6429,189.36,189.31,2.6435]
[1735230883782,2.6428,189.37,189.32,2.6434]
[1735230884077,3.24,189.39,189.27,1.5427]
[1735230884281,3.24,189.39,189.27,13.60700717]
[1735230885877,2.6427,189.38,189.33,2.6432]
[1735230886789,3.24,189.37,189.33,2.6432]
[1735230887486,5.8828,189.37,189.27,13.60700717]
[1735230887786,3.24,189.37,189.27,13.60700717]
[1735230888187,3.24,189.37,189.31,2.6435]
[1735230888384,2.643,189.36,189.31,2.6435]
[1735230889089,2.6431,189.35,189.31,2.6435]
[1735230889790,2.6431,189.35,189.27,13.60700717]
[1735230889986,2.6431,189.35,189.3,2.6438]
[1735230890193,2.6435,189.32,189.24,13.62850717]
[1735230890389,5.8835,189.32,189.24,13.62850717]
[1735230891288,5.8835,189.32,189.27,2.6441]
[1735230892688,5.8835,189.32,189.28,2.644]
[1735230892989,1.5628,189.36,189.24,13.62850717]
[1735230893191,2.6432,189.34,189.27,2.6442]
[1735230893392,2.6432,189.34,189.24,13.62850717]
[1735230894192,2.6434,189.33,189.29,2.6438]
[1735230895092,3.2,189.34,189.27,12.06430717]
[1735230895293,1.5628,189.36,189.27,12.06430717]
[1735230895491,3.2,189.35,189.31,2.6435]
[1735230895686,3.2,189.35,189.24,1.5642]
[1735230895687,3.2,189.35,189.24,13.62850717]
[1735230895891,12.06430717,189.34,189.21,12.06430717]
[1735230896194,2.6442,189.27,189.21,12.06430717]
[1735230896494,5.8442,189.27,189.21,12.06430717]
[1735230896897,5.8442,189.27,189.21,14.70920717]
[1735230897198,3.2,189.27,189.2,107.2624983]
[1735230897397,3.2,189.27,189.15,13.60030717]
[1735230897597,3.2,189.27,189.18,2.6454]
[1735230897598,1.5871,189.26,189.18,2.6454]
[1735230897993,2.6449,189.23,189.18,2.6454]
[1735230898199,3.159,189.26,189.15,13.60030717]
[1735230898200,3.2,189.22,189.19,2.6452]
[1735230900194,5.8449,189.22,189.17,2.6455]
[1735230900401,3.2,189.22,189.15,12.06430717]
[1735230900591,3.2,189.22,189.12,13.64280717]
[1735230900905,2.6455,189.18,189.14,2.646]
[1735230901091,3.2,189.17,189.09,13.73250717]
[1735230901402,3.2,189.16,189.09,13.73250717]
[1735230902400,3.2,189.16,189.12,2.6462]
[1735230903301,2.6451,189.21,189.12,12.06430717]
[1735230903504,3.2,189.18,189.12,12.06430717]
[1735230904404,13.60520717,189.25,189.15,12.06430717]
[1735230904405,3.2,189.22,189.15,12.06430717]
[1735230904909,2.6441,189.28,189.23,2.6447]
[1735230905201,3.2,189.27,189.18,12.06430717]
[1735230905705,3.2,189.28,189.18,12.06430717]
[1735230906100,3.2,189.29,189.21,12.06430717]
[1735230906403,3.2,189.29,189.21,19.31192105]
[1735230906706,3.2,189.33,189.21,19.31192105]
[1735230907105,6.3918,189.33,189.18,19.31192105]
[1735230907405,19.31192105,189.37,189.21,19.31192105]
[1735230907602,3.2,189.36,189.24,19.31192105]
[1735230907902,5.8428,189.37,189.3,2.6437]
[1735230908093,3.1918,189.41,189.25,3.1599]
[1735230908301,3.1918,189.41,189.27,19.31192105]
[1735230908497,3.1918,189.41,189.3,19.31192105]
[1735230908701,3.2,189.4,189.3,19.31192105]
[1735230909001,5.8424,189.4,189.34,2.6432]
[1735230909800,2.6426,189.39,189.3,19.31192105]
[1735230910109,3.2,189.4,189.25,22.47182105]
[1735230910902,2.6432,189.35,189.3,2.6437]
[1735230911107,3.2,189.34,189.3,2.6437]
[1735230912903,5.8432,189.34,189.25,22.47182105]
[1735230913109,3.2,189.34,189.25,22.47182105]
[1735230914006,3.1918,189.41,189.25,22.47182105]
[1735230914217,3.2,189.4,189.32,2.6434]
[1735230914711,2.6427,189.38,189.32,2.6434]
[1735230914912,3.2,189.4,189.25,22.47182105]
[1735230915109,2.6432,189.34,189.25,22.47182105]
[1735230915304,3.2,189.35,189.25,22.47182105]
[1735230916112,5.8431,189.35,189.28,2.644]
[1735230916410,3.2,189.35,189.25,22.47182105]
[1735230916709,3.2,189.35,189.28,19.31192105]
[1735230917108,3.2,189.35,189.31,2.6436]
[1735230917504,3.2,189.35,189.25,22.47182105]
[1735230917707,2.6432,189.34,189.26,12.53793578]
[1735230917909,2.6432,189.34,189.27,12.54035958]
[1735230918215,19.31192105,189.34,189.24,2.6445]
[1735230918413,1.6413,189.33,189.2,7.72336532]
[1735230918612,1.6413,189.33,189.21,12.55057695]
[1735230918813,2.644,189.28,189.22,15.19359714]
[1735230919013,5.844,189.28,189.23,4.82646044]
[1735230919214,5.844,189.28,189.22,2.6448]
[1735230919518,5.844,189.28,189.23,4.82707852]
[1735230919814,5.844,189.28,189.22,2.6448]
[1735230920008,5.844,189.28,189.23,4.80203228]
[1735230920208,5.844,189.28,189.22,2.6448]
[1735230920825,3.2,189.28,189.19,108.81996016]
[1735230921114,3.2,189.28,189.2,4.7789206]
[1735230921311,22.51192105,189.28,189.21,4.7789206]
[1735230921510,22.51192105,189.28,189.17,4.77982759]
[1735230921731,22.51192105,189.28,189.18,4.77982759]
[1735230921922,22.51192105,189.28,189.19,4.78013586]
[1735230922118,22.51192105,189.28,189.16,1.6042]
[1735230922318,3.2,189.28,189.17,4.78001801]
[1735230922620,3.2,189.28,189.18,4.78001801]
[1735230922820,3.2,189.28,189.19,4.78001801]
[1735230923010,22.51192105,189.28,189.19,2.6452]
[1735230923215,22.51192105,189.28,189.16,1.6042]
[1735230923416,22.51192105,189.28,189.17,4.78245129]
[1735230923622,2.6445,189.25,189.19,2.6453]
[1735230923921,22.51192105,189.28,189.19,2.6453]
[1735230924122,2.6447,189.24,189.19,2.6453]
[1735230924425,3.22,189.23,189.17,2.6454]
[1735230924618,3.22,189.22,189.12,19.31192105]
[1735230924821,2.6451,189.21,189.13,4.78520455]
[1735230925122,3.22,189.22,189.14,4.78520455]
[1735230925319,22.53192105,189.22,189.12,4.784911]
[1735230925517,4.6932,189.21,189.08,4.78534662]
[1735230925721,19.31192105,189.19,189.09,4.78534662]
[1735230926013,19.31192105,189.19,189.1,4.78534662]
[1735230926215,19.31192105,189.19,189.07,1.6802]
[1735230926413,4.6932,189.21,189.08,24.09560635]
[1735230926615,4.7447,189.21,189.09,4.7836853]
[1735230926819,4.7447,189.21,189.1,4.7836853]
[1735230927014,4.7447,189.21,189.11,4.7836853]
[1735230927215,3.22,189.21,189.12,4.7836853]
[1735230927416,3.22,189.21,189.13,4.7836853]
[1735230927619,3.22,189.21,189.14,4.7836853]
[1735230927820,3.22,189.21,189.11,19.31192105]
[1735230928019,3.22,189.21,189.12,4.78262348]
[1735230928225,3.22,189.21,189.11,19.31192105]
[1735230928619,3.22,189.21,189.08,3.22]
[1735230928620,3.22,189.21,189.08,19.31192105]
[1735230929226,2.6456,189.18,189.08,19.31192105]
[1735230929424,3.22,189.21,189.08,19.31192105]
[1735230930324,3.22,189.21,189.09,9.56241409]
[1735230930525,3.22,189.21,189.1,4.78120708]
[1735230930728,3.22,189.21,189.11,4.78120708]
[1735230930922,1.6114,189.2,189.12,4.78120708]
[1735230931123,2.6455,189.18,189.12,2.6463]
[1735230932022,1.6114,189.2,189.11,2.6464]
[1735230932428,2.6457,189.17,189.11,2.6464]
[1735230932626,3.22,189.16,189.11,2.6464]
[1735230933027,5.8658,189.16,189.11,2.6464]
[1735230934125,19.31192105,189.22,189.07,1.6802]
[1735230934427,3.244,189.24,189.11,19.31192105]
[1735230934724,3.22,189.23,189.19,2.6452]
[1735230935320,2.6446,189.24,189.15,4.77771292]
[1735230935527,3.2252,189.29,189.16,4.77771292]
[1735230935727,3.22,189.28,189.17,8.00651292]
[1735230936027,2.6444,189.26,189.21,2.645]
[1735230936330,5.8644,189.26,189.19,4.77352678]
[1735230936526,5.8644,189.26,189.21,2.6449]
[1735230936929,5.8644,189.26,189.17,3.2288]
[1735230936930,3.22,189.26,189.19,4.77374238]
[1735230937229,3.22,189.26,189.17,2.6456]
[1735230937429,2.6449,189.23,189.12,3.202]
[1735230937633,2.6449,189.23,189.19,2.6453]
[1735230937828,3.22,189.26,189.19,2.6453]
[1735230938035,3.22,189.25,189.15,19.31192105]
[1735230938234,3.22,189.25,189.23,2.6447]
[1735230938726,2.6442,189.27,189.23,2.6447]
[1735230938930,5.8642,189.27,189.23,2.6447]
[1735230941228,3.22,189.27,189.16,4.7797]
[1735230941428,2.6444,189.26,189.21,2.6449]
[1735230941627,2.6444,189.26,189.18,4.77885405]
[1735230941927,2.6444,189.26,189.19,4.77885405]
[1735230942129,2.6445,189.25,189.21,2.645]
[1735230942328,3.22,189.27,189.17,4.7800404]
[1735230942529,3.22,189.27,189.12,25.73392105]
[1735230942732,3.22,189.27,189.13,4.7803006]
[1735230942930,3.22,189.27,189.12,25.73392105]
[1735230942931,3.22,189.27,189.14,4.7803006]
[1735230943133,22.53192105,189.27,189.15,4.7803006]
[1735230943433,2.6446,189.24,189.18,2.6454]
[1735230943633,22.53192105,189.27,189.12,22.51392105]
[1735230943834,22.53192105,189.27,189.13,4.78100704]
[1735230944036,2.6448,189.23,189.18,2.6453]
[1735230944335,3.22,189.22,189.18,2.6453]
[1735230944831,3.22,189.22,189.12,22.51392105]
[1735230945032,3.22,189.22,189.13,4.78049572]
[1735230945335,3.2252,189.29,189.15,19.31192105]
[1735230945537,1.5523,189.29,189.16,6.34729572]
[1735230945734,3.22,189.28,189.17,4.78049572]
[1735230946033,3.22,189.28,189.21,2.6449]
[1735230946229,3.22,189.28,189.17,4.78081044]
[1735230946436,2.6445,189.25,189.2,2.6451]
[1735230947037,2.6449,189.22,189.18,7.42768858]
[1735230947236,3.22,189.23,189.13,19.31192105]
[1735230947539,3.22,189.23,189.2,2.6451]
[1735230948238,2.6449,189.22,189.18,2.6454]
[1735230950743,2.6449,189.22,189.14,1.6719]
[1735230950744,3.22,189.23,189.14,1.6719]
[1735230950942,2.6451,189.21,189.16,2.6456]
[1735230951142,2.6451,189.21,189.12,3.202]
[1735230951343,2.6451,189.21,189.13,4.78538511]
[1735230951545,2.6451,189.21,189.17,2.6456]
[1735230952744,3.22,189.23,189.12,3.202]
[1735230953041,3.22,189.26,189.13,4.78515503]
[1735230953247,3.22,189.26,189.15,19.31192105]
[1735230953446,3.22,189.26,189.22,2.6449]
[1735230955040,3.22,189.26,189.2,2.645]
[1735230955542,3.22,189.26,189.15,19.31192105]
[1735230955743,2.6445,189.25,189.21,2.645]
[1735230956239,5.8643,189.26,189.15,19.31192105]
[1735230956445,1.5523,189.29,189.16,4.79078368]
[1735230956646,3.22,189.28,189.15,19.31192105]
[1735230956841,3.22,189.28,189.17,4.79057679]
[1735230957039,19.31192105,189.27,189.18,4.79057679]
[1735230957247,19.31192105,189.27,189.12,3.202]
[1735230957545,19.31192105,189.27,189.13,4.79304989]
[1735230957747,19.31192105,189.27,189.14,4.79304989]
[1735230957945,2.6449,189.22,189.18,2.6453]
[1735230958151,5.8649,189.22,189.18,2.6453]
[1735230959046,15.30209171,189.22,189.12,3.202]
[1735230959246,15.30209171,189.22,189.13,4.7949995]
[1735230959442,2.6455,189.18,189.14,7.4408995]
[1735230959746,3.22,189.17,189.15,4.7949995]
[1735230960047,3.22,189.17,189.14,2.6459]
[1735230960255,3.22,189.17,189.15,4.79774109]
[1735230960446,3.22,189.17,189.14,2.6459]
[1735230960646,3.22,189.17,189.15,4.80011572]
[1735230960950,3.22,189.17,189.09,12.08209171]
[1735230961147,3.22,189.17,189.1,4.8001161]
[1735230961346,3.22,189.17,189.11,4.8001161]
[1735230961546,3.22,189.17,189.12,4.8001161]
[1735230961743,3.22,189.17,189.13,4.8001161]
[1735230961944,3.22,189.17,189.14,4.8001161]
[1735230962143,3.22,189.17,189.15,4.8001161]
[1735230962344,3.22,189.17,189.16,4.8001161]
[1735230962659,3.22,189.17,189.16,7.4458161]
[1735230963151,3.22,189.17,189.16,4.8001161]
[1735230963455,3.22,189.17,189.09,12.08209171]
[1735230963654,3.22,189.17,189.1,4.80839777]
[1735230963852,5.8656,189.17,189.12,2.6463]
[1735230964049,12.08209171,189.16,189.13,4.80839777]
[1735230964254,12.08209171,189.16,189.07,3.2024]
[1735230964255,12.08209171,189.16,189.08,2.6467]
[1735230964455,12.08209171,189.16,189.09,4.80779233]
[1735230964654,12.08209171,189.16,189.1,4.80779233]
[1735230964853,2.6463,189.13,189.11,4.80779233]
[1735230965051,3.22,189.12,189.07,3.2024]
[1735230966553,3.22,189.12,189.1,2.6464]
[1735230968758,12.08209171,189.19,189.07,3.2024]
[1735230968958,3.22,189.2,189.12,12.08209171]
[1735230969757,21.85295374,189.24,189.15,12.08209171]
[1735230970062,3.22,189.29,189.21,12.08209171]
[1735230970558,24.49675374,189.3,189.24,2.6445]
[1735230970863,25.07295374,189.3,189.21,12.08209171]
[1735230971167,3.22,189.31,189.27,2.6442]
[1735230973358,3.22,189.31,189.28,2.644]
[1735230974558,3.22,189.32,189.28,2.644]
[1735230975157,2.644,189.29,189.24,2.6446]
[1735230975666,3.22,189.32,189.18,1.6713]
[1735230976262,2.6443,189.27,189.22,2.6448]
[1735230976564,3.22,189.26,189.22,2.6448]
[1735230978663,3.22,189.26,189.21,2.645]
[1735230979065,3.22,189.26,189.16,3.1846]
[1735230979369,3.22,189.26,189.22,2.6448]
[1735230980368,5.8644,189.26,189.21,2.645]
[1735230980663,3.22,189.26,189.21,2.645]
[1735230981369,3.22,189.26,189.16,3.1846]
[1735230981571,3.1534,189.3,189.18,19.31106441]
[1735230981868,3.22,189.28,189.21,2.645]
[1735230982065,3.22,189.28,189.18,19.31106441]
[1735230982261,3.22,189.28,189.16,3.1846]
[1735230982762,2.6444,189.26,189.21,2.6449]
[1735230983570,3.22,189.28,189.18,2.6453]
[1735230983765,20.96066441,189.27,189.12,19.31106441]
[1735230984067,19.31106441,189.24,189.1,3.1431]
[1735230984271,3.22,189.23,189.1,3.1431]
[1735230984470,2.6456,189.17,189.12,2.6462]
[1735230984772,3.22,189.17,189.1,1.5879]
[1735230984969,3.22,189.17,189.12,2.6463]
[1735230985166,3.22,189.17,189.1,1.5879]
[1735230985766,3.22,189.17,189.14,2.6459]
[1735230987571,3.22,189.17,189.15,2.6458]
[1735230990166,3.22,189.17,189.1,1.5879]
[1735230990371,5.8656,189.17,189.1,1.5879]
[1735230991273,5.8656,189.17,189.13,2.6461]
[1735230991471,3.22,189.17,189.1,1.5879]
[1735230991671,2.6457,189.16,189.1,1.5879]
[1735230992477,2.6457,189.16,189.12,2.6462]
[1735230992778,5.8656,189.17,189.12,2.6462]
[1735230993476,3.22,189.17,189.1,1.5879]
[1735230993673,3.22,189.17,189.08,12.08775455]
[1735230994073,2.6459,189.15,189.11,2.6464]
[1735230995975,3.22,189.17,189.06,3.1031]
[1735230997476,2.6462,189.13,189.09,2.6467]
[1735230999878,3.22,189.17,189.08,12.08775455]
[1735231000081,3.3137,189.22,189.11,12.08775455]
[1735231000277,3.3137,189.22,189.14,12.08775455]
[1735231000480,6.5337,189.22,189.14,12.08775455]
[1735231000674,3.22,189.22,189.14,12.08775455]
[1735231001077,3.22,189.22,189.16,2.6457]
[1735231001281,3.22,189.22,189.14,12.08775455]
[1735231001981,3.22,189.22,189.18,2.6453]
[1735231002481,2.6445,189.25,189.14,12.08775455]
[1735231002682,3.22,189.24,189.17,12.08775455]
[1735231003479,3.22,189.24,189.22,2.6449]
[1735231003779,3.22,189.26,189.22,2.6449]
[1735231004384,1.6496,189.27,189.22,2.6449]
[1735231004579,3.22,189.26,189.17,12.08775455]
[1735231005685,2.6446,189.24,189.17,12.08775455]
[1735231005881,3.22,189.26,189.15,3.1998]
[1735231006683,2.6449,189.23,189.15,3.1998]
[1735231007176,3.22,189.26,189.17,12.08775455]
[1735231007485,21.85295374,189.35,189.2,12.08775455]
[1735231007486,12.08775455,189.33,189.2,12.08775455]
[1735231007786,5.8636,189.32,189.26,2.6442]
[1735231008085,3.22,189.32,189.2,12.08775455]
[1735231008281,12.08775455,189.3,189.21,2.645]
[1735231008479,12.08775455,189.3,189.17,12.08775455]
[1735231008679,3.22,189.32,189.2,12.08775455]
[1735231008882,2.6437,189.31,189.26,2.6442]
[1735231009376,2.6439,189.29,189.24,2.6445]
[1735231009884,2.6439,189.29,189.2,12.08775455]
[1735231010079,3.22,189.32,189.24,2.6445]
[1735231010281,12.08775455,189.3,189.17,12.08775455]
[1735231010881,3.22,189.32,189.2,12.08775455]
[1735231011283,12.08775455,189.33,189.2,12.08775455]
[1735231011481,3.18,189.32,189.2,12.08775455]
[1735231011986,2.6436,189.31,189.23,2.6447]
[1735231012186,2.6436,189.31,189.2,12.08775455]
[1735231012485,3.18,189.32,189.2,12.08775455]
[1735231012684,2.6441,189.28,189.24,2.6446]
[1735231014588,3.18,189.32,189.2,12.08775455]
[1735231014589,3.18,189.27,189.2,12.08775455]
[1735231014789,5.8242,189.27,189.2,12.08775455]
[1735231016588,5.8242,189.27,189.23,2.6447]
[1735231017085,3.18,189.27,189.2,12.08775455]
[1735231017280,3.18,189.27,189.24,2.6446]
[1735231017486,12.08775455,189.33,189.2,12.08775455]
[1735231017688,3.18,189.29,189.22,2.6448]
[1735231017987,3.18,189.29,189.2,12.08775455]
[1735231018193,2.6442,189.28,189.22,2.6448]
[1735231018390,2.6442,189.28,189.17,12.08775455]
[1735231019289,2.6442,189.28,189.23,2.6447]
[1735231020392,2.6443,189.27,189.23,2.6447]
[1735231020588,3.18,189.29,189.17,12.08775455]
[1735231022290,58.27454332,189.39,189.18,12.08775455]
[1735231022490,58.27454332,189.39,189.28,12.08775455]
[1735231022998,58.27454332,189.39,189.34,12.08775455]
[1735231023593,58.27454332,189.39,189.37,2.6428]
[1735231023787,3.70355375,189.38,189.37,2.6428]
[1735231023996,57.39294332,189.39,189.37,12.08775455]